[Event "*** Titled Tuesday Blitz"]
[Site "Chess.com"]
[Date "2020.04.14"]
[Round "2"]
[White "arminmusovic"]
[Black "Ruchess27"]
[Result "0-1"]
[WhiteElo "2484"]
[BlackElo "2268"]
[TimeControl "180+1"]
[EndTime "10:18:24 PDT"]
[Termination "Ruchess27 won by resignation"]

1. a3 {[%clk 0:03:00.9]} 1... d5 {[%clk 0:02:58.6]} 2. Nc3 {[%clk 0:02:59.5]}
2... g6 {[%clk 0:02:53.1]} 3. e4 {[%clk 0:02:56.8]} 3... d4 {[%clk 0:02:50.9]}
4. Nce2 {[%clk 0:02:57.1]} 4... Bg7 {[%clk 0:02:50.6]} 5. Ng3 {[%clk 0:02:57.6]}
5... c5 {[%clk 0:02:50.2]} 6. Bb5+ {[%clk 0:02:57.3]} 6... Bd7 {[%clk
0:02:49.1]} 7. Bxd7+ {[%clk 0:02:57.6]} 7... Qxd7 {[%clk 0:02:49.4]} 8. d3
{[%clk 0:02:58.5]} 8... h5 {[%clk 0:02:48.5]} 9. h3 {[%clk 0:02:58.6]} 9... Nc6
{[%clk 0:02:47.6]} 10. N1e2 {[%clk 0:02:58.5]} 10... e6 {[%clk 0:02:42.2]} 11.
Bg5 {[%clk 0:02:54.2]} 11... Nge7 {[%clk 0:02:39.4]} 12. O-O {[%clk 0:02:52.7]}
12... e5 {[%clk 0:02:33.1]} 13. b4 {[%clk 0:02:38.4]} 13... h4 {[%clk
0:02:27.9]} 14. Nh1 {[%clk 0:02:36.7]} 14... f6 {[%clk 0:02:27.5]} 15. Bd2
{[%clk 0:02:36.5]} 15... cxb4 {[%clk 0:02:22.2]} 16. axb4 {[%clk 0:02:35.7]}
16... g5 {[%clk 0:02:22.2]} 17. b5 {[%clk 0:02:27.4]} 17... Nd8 {[%clk 0:02:22]}
18. b6 {[%clk 0:02:25.1]} 18... a6 {[%clk 0:02:19.6]} 19. Bb4 {[%clk 0:02:21.6]}
19... g4 {[%clk 0:02:12.4]} 20. hxg4 {[%clk 0:02:07.7]} 20... h3 {[%clk
0:01:59]} 21. f3 {[%clk 0:02:01.6]} 21... Bh6 {[%clk 0:01:49.8]} 22. Bd2 {[%clk
0:01:58.4]} 22... h2+ {[%clk 0:01:30.2]} 23. Kf2 {[%clk 0:01:57]} 23... Ng6
{[%clk 0:01:25.6]} 24. g3 {[%clk 0:01:56.7]} 24... Ne6 {[%clk 0:01:10.8]} 25.
Kg2 {[%clk 0:01:44.3]} 25... Rc8 {[%clk 0:01:02.8]} 26. Nf2 {[%clk 0:01:31.5]}
26... Be3 {[%clk 0:01:00.2]} 27. Kh1 {[%clk 0:01:26.7]} 27... Qh7 {[%clk
0:00:55.7]} 28. Qe1 {[%clk 0:01:16.6]} 28... Rxc2 {[%clk 0:00:49.7]} 29. Bb4
{[%clk 0:00:30]} 29... Ng5 {[%clk 0:00:45.8]} 30. Nd1 {[%clk 0:00:29]} 30... Qh3
{[%clk 0:00:38.4]} 31. Rb1 {[%clk 0:00:25.5]} 31... Ra2 {[%clk 0:00:33.4]} 32.
Rb2 {[%clk 0:00:22.7]} 32... Ra1 {[%clk 0:00:32.6]} 33. Rc2 {[%clk 0:00:18.2]}
33... Kd8 {[%clk 0:00:27]} 34. Rc7 {[%clk 0:00:15.9]} 34... Rb1 {[%clk
0:00:25.4]} 35. Bd6 {[%clk 0:00:13.7]} 35... Rxb6 {[%clk 0:00:22.2]} 36. Nxe3
{[%clk 0:00:13]} 36... dxe3 {[%clk 0:00:20.5]} 37. Bc5 {[%clk 0:00:12.1]} 37...
Kxc7 {[%clk 0:00:18.1]} 38. Bxb6+ {[%clk 0:00:11]} 38... Kxb6 {[%clk 0:00:19]}
39. Nc3 {[%clk 0:00:10.7]} 39... Kc7 {[%clk 0:00:17.8]} 40. Nd5+ {[%clk
0:00:10.5]} 40... Kb8 {[%clk 0:00:17.9]} 41. Nxe3 {[%clk 0:00:09.7]} 41... Ne7
{[%clk 0:00:15]} 42. Qb4 {[%clk 0:00:09.3]} 42... Nc6 {[%clk 0:00:14.1]} 43.
Qd6+ {[%clk 0:00:09.3]} 43... Ka8 {[%clk 0:00:13.7]} 44. Qxf6 {[%clk 0:00:09.9]}
44... Qh6 {[%clk 0:00:09.2]} 45. Qxh6 {[%clk 0:00:09.3]} 45... Rxh6 {[%clk
0:00:09.1]} 46. Nd5 {[%clk 0:00:10.2]} 46... Nd4 {[%clk 0:00:09]} 47. f4 {[%clk
0:00:10.5]} 47... exf4 {[%clk 0:00:08.9]} 48. gxf4 {[%clk 0:00:11.4]} 48... Ngf3
{[%clk 0:00:09]} 49. g5 {[%clk 0:00:11.9]} 49... Rh3 {[%clk 0:00:07.2]} 50. g6
{[%clk 0:00:10.9]} 50... Rg3 {[%clk 0:00:07.5]} 51. f5 {[%clk 0:00:10.6]} 51...
Rg1+ {[%clk 0:00:07.5]} 0-1

[Event "*** Titled Tuesday Blitz"]
[Site "Chess.com"]
[Date "2020.04.14"]
[Round "2"]
[White "checkmatequen"]
[Black "Vice64"]
[Result "0-1"]
[WhiteElo "2213"]
[BlackElo "2474"]
[TimeControl "180+1"]
[EndTime "10:18:25 PDT"]
[Termination "Vice64 won by resignation"]

1. e4 {[%clk 0:03:00.9]} 1... e5 {[%clk 0:02:58.3]} 2. Nf3 {[%clk 0:03:00.8]}
2... Nc6 {[%clk 0:02:58.4]} 3. Nc3 {[%clk 0:03:01]} 3... Nf6 {[%clk 0:02:58]} 4.
Bb5 {[%clk 0:03:01.3]} 4... Bb4 {[%clk 0:02:56.8]} 5. O-O {[%clk 0:03:01.7]}
5... O-O {[%clk 0:02:57.1]} 6. d3 {[%clk 0:03:02.1]} 6... Bxc3 {[%clk
0:02:54.6]} 7. bxc3 {[%clk 0:03:03]} 7... d6 {[%clk 0:02:55]} 8. Bg5 {[%clk
0:03:03.2]} 8... Bd7 {[%clk 0:02:55.1]} 9. Re1 {[%clk 0:03:00.7]} 9... h6 {[%clk
0:02:55.4]} 10. Bh4 {[%clk 0:03:00.2]} 10... Qe7 {[%clk 0:02:53.7]} 11. d4
{[%clk 0:03:00.1]} 11... a6 {[%clk 0:02:52]} 12. Bd3 {[%clk 0:02:47.2]} 12...
Bg4 {[%clk 0:02:50]} 13. d5 {[%clk 0:02:43.7]} 13... Nb8 {[%clk 0:02:48.7]} 14.
c4 {[%clk 0:02:42.6]} 14... Nbd7 {[%clk 0:02:47.8]} 15. h3 {[%clk 0:02:42.8]}
15... Bxf3 {[%clk 0:02:42.2]} 16. Qxf3 {[%clk 0:02:41.8]} 16... g6 {[%clk
0:02:15.5]} 17. Rab1 {[%clk 0:02:33.5]} 17... b6 {[%clk 0:02:14.2]} 18. a4
{[%clk 0:02:30.5]} 18... a5 {[%clk 0:02:14.3]} 19. c5 {[%clk 0:02:22.6]} 19...
dxc5 {[%clk 0:01:58.4]} 20. Bb5 {[%clk 0:02:19.6]} 20... g5 {[%clk 0:01:58.8]}
21. Bg3 {[%clk 0:02:19.4]} 21... Kg7 {[%clk 0:01:48.9]} 22. Qf5 {[%clk 0:02:16]}
22... Rad8 {[%clk 0:01:48.2]} 23. h4 {[%clk 0:02:13.8]} 23... Nh5 {[%clk
0:01:39.6]} 24. hxg5 {[%clk 0:01:33.1]} 24... hxg5 {[%clk 0:01:38.6]} 25. Bxd7
{[%clk 0:01:31.6]} 25... Nxg3 {[%clk 0:01:38.3]} 26. fxg3 {[%clk 0:01:31.5]}
26... Rxd7 {[%clk 0:01:37.5]} 27. Rf1 {[%clk 0:01:27.6]} 27... Rd6 {[%clk
0:01:37]} 28. g4 {[%clk 0:01:22.1]} 28... Rh8 {[%clk 0:01:29.8]} 29. Rf3 {[%clk
0:01:21.4]} 29... Qf6 {[%clk 0:01:09.5]} 30. Rbf1 {[%clk 0:01:03.6]} 30... Qxf5
{[%clk 0:01:09.5]} 31. Rxf5 {[%clk 0:01:03.4]} 31... f6 {[%clk 0:01:09.3]} 32.
c4 {[%clk 0:00:56.9]} 32... Rh4 {[%clk 0:01:08.9]} 33. Kf2 {[%clk 0:00:42]}
33... Rxg4 {[%clk 0:01:09.1]} 34. Kf3 {[%clk 0:00:38]} 34... Rh4 {[%clk
0:01:08.2]} 35. g3 {[%clk 0:00:25.1]} 35... Rh2 {[%clk 0:01:05.5]} 36. Rf2
{[%clk 0:00:24.7]} 36... Rh1 {[%clk 0:01:00.8]} 37. Kg4 {[%clk 0:00:17.5]} 37...
Re1 {[%clk 0:00:55.5]} 38. Kf3 {[%clk 0:00:15.1]} 38... Rc1 {[%clk 0:00:54]} 39.
Re2 {[%clk 0:00:14.5]} 39... Rc3+ {[%clk 0:00:51.2]} 40. Kg4 {[%clk 0:00:14.8]}
40... Rxc4 {[%clk 0:00:47.8]} 41. Rff2 {[%clk 0:00:14.7]} 41... Rxa4 {[%clk
0:00:45.8]} 42. Kf5 {[%clk 0:00:15]} 42... Ra3 {[%clk 0:00:44.9]} 43. Rh2 {[%clk
0:00:15.3]} 43... Rxg3 {[%clk 0:00:43.5]} 44. Ref2 {[%clk 0:00:14.9]} 44... a4
{[%clk 0:00:40.4]} 45. Rh5 {[%clk 0:00:14.1]} 45... a3 {[%clk 0:00:27.2]} 46.
Rfh2 {[%clk 0:00:11.5]} 46... Rf3+ {[%clk 0:00:27.6]} 47. Kg4 {[%clk 0:00:12]}
47... Rf4+ {[%clk 0:00:28.5]} 48. Kg3 {[%clk 0:00:12.4]} 48... Rh4 {[%clk
0:00:28.8]} 49. R5xh4 {[%clk 0:00:10.3]} 49... gxh4+ {[%clk 0:00:29.7]} 50. Kxh4
{[%clk 0:00:10.3]} 50... b5 {[%clk 0:00:26.8]} 51. Kg4 {[%clk 0:00:10.5]} 51...
b4 {[%clk 0:00:26.8]} 52. Kf5 {[%clk 0:00:11]} 52... b3 {[%clk 0:00:26.1]} 53.
Rg2+ {[%clk 0:00:11.5]} 53... Kf7 {[%clk 0:00:26.1]} 54. Rh2 {[%clk 0:00:11.3]}
54... a2 {[%clk 0:00:24.8]} 55. Rh7+ {[%clk 0:00:11.2]} 55... Kg8 {[%clk
0:00:25]} 56. Rxc7 {[%clk 0:00:09.9]} 56... a1=Q {[%clk 0:00:23.4]} 57. Rc8+
{[%clk 0:00:10]} 57... Kg7 {[%clk 0:00:22.7]} 58. Rc7+ {[%clk 0:00:10.5]} 58...
Kh6 {[%clk 0:00:22.8]} 59. Rxc5 {[%clk 0:00:08.1]} 59... Qf1+ {[%clk 0:00:21.3]}
60. Kg4 {[%clk 0:00:08.4]} 60... Qf4+ {[%clk 0:00:20.7]} 61. Kh3 {[%clk
0:00:08.4]} 61... b2 {[%clk 0:00:20]} 62. Rb5 {[%clk 0:00:08.6]} 62... Qf1+
{[%clk 0:00:17.6]} 63. Kg3 {[%clk 0:00:08.1]} 63... Qxb5 {[%clk 0:00:16.7]} 64.
Kg4 {[%clk 0:00:09]} 0-1

[Event "*** Titled Tuesday Blitz"]
[Site "Chess.com"]
[Date "2020.04.14"]
[Round "2"]
[White "Bulldog167"]
[Black "florianschwabeneder"]
[Result "1-0"]
[WhiteElo "2746"]
[BlackElo "2525"]
[TimeControl "180+1"]
[EndTime "10:18:27 PDT"]
[Termination "Bulldog167 won by resignation"]

1. d4 {[%clk 0:03:00.9]} 1... Nf6 {[%clk 0:02:59.7]} 2. c4 {[%clk 0:03:01.1]}
2... c5 {[%clk 0:02:59.9]} 3. d5 {[%clk 0:03:01.3]} 3... e5 {[%clk 0:03:00.3]}
4. Nc3 {[%clk 0:03:01.5]} 4... d6 {[%clk 0:03:00.8]} 5. e4 {[%clk 0:03:02]} 5...
Nbd7 {[%clk 0:03:00.9]} 6. g3 {[%clk 0:03:02.1]} 6... Be7 {[%clk 0:02:59.1]} 7.
Bg2 {[%clk 0:03:02.4]} 7... a6 {[%clk 0:02:59.6]} 8. Nf3 {[%clk 0:03:01.4]} 8...
b5 {[%clk 0:02:58.3]} 9. Nd2 {[%clk 0:02:57.6]} 9... Rb8 {[%clk 0:02:51.7]} 10.
O-O {[%clk 0:02:54.2]} 10... O-O {[%clk 0:02:51.1]} 11. b3 {[%clk 0:02:54.3]}
11... Ne8 {[%clk 0:02:46.7]} 12. Qc2 {[%clk 0:02:52.2]} 12... Nc7 {[%clk
0:02:34.5]} 13. a4 {[%clk 0:02:51.9]} 13... Bg5 {[%clk 0:02:09.9]} 14. Re1
{[%clk 0:02:31.2]} 14... g6 {[%clk 0:02:02.4]} 15. Bf1 {[%clk 0:02:28.1]} 15...
b4 {[%clk 0:01:57.7]} 16. Nd1 {[%clk 0:02:26.1]} 16... f5 {[%clk 0:01:54.9]} 17.
exf5 {[%clk 0:02:23.3]} 17... gxf5 {[%clk 0:01:54.5]} 18. Rb1 {[%clk 0:02:06]}
18... Ne8 {[%clk 0:01:52]} 19. f4 {[%clk 0:02:05.4]} 19... exf4 {[%clk
0:01:42.1]} 20. Nf3 {[%clk 0:02:05.5]} 20... Bh6 {[%clk 0:01:40.9]} 21. Nf2
{[%clk 0:01:55.2]} 21... Ndf6 {[%clk 0:01:15.3]} 22. Nh3 {[%clk 0:01:50.4]}
22... Ne4 {[%clk 0:01:08.1]} 23. Bxf4 {[%clk 0:01:47.3]} 23... Bg7 {[%clk
0:01:01.2]} 24. Nhg5 {[%clk 0:01:43.1]} 24... N8f6 {[%clk 0:00:58]} 25. Bd3
{[%clk 0:01:39]} 25... h6 {[%clk 0:00:48.6]} 26. Ne6 {[%clk 0:01:30.4]} 26...
Bxe6 {[%clk 0:00:47.5]} 27. dxe6 {[%clk 0:01:31.3]} 27... Qe7 {[%clk 0:00:46.9]}
28. Nd2 {[%clk 0:01:30.9]} 28... Qxe6 {[%clk 0:00:39.8]} 29. Nxe4 {[%clk
0:01:30.9]} 29... fxe4 {[%clk 0:00:39.6]} 30. Bxe4 {[%clk 0:01:31.5]} 30... Nxe4
{[%clk 0:00:38.5]} 31. Qxe4 {[%clk 0:01:30.8]} 31... Qxe4 {[%clk 0:00:29.6]} 32.
Rxe4 {[%clk 0:01:31.7]} 32... Rbe8 {[%clk 0:00:28.8]} 33. Rbe1 {[%clk
0:01:27.3]} 33... Rxe4 {[%clk 0:00:27.5]} 34. Rxe4 {[%clk 0:01:28.2]} 34... Bd4+
{[%clk 0:00:27.4]} 35. Kg2 {[%clk 0:01:28.1]} 35... Rf6 {[%clk 0:00:23.9]} 36.
Re8+ {[%clk 0:01:22.5]} 36... Kf7 {[%clk 0:00:23]} 37. Ra8 {[%clk 0:01:22.1]}
37... Re6 {[%clk 0:00:23.1]} 38. Kf1 {[%clk 0:01:06.1]} 38... Be3 {[%clk
0:00:20.8]} 39. Rxa6 {[%clk 0:01:05.3]} 39... Bxf4 {[%clk 0:00:20.5]} 40. gxf4
{[%clk 0:01:06.2]} 40... Re3 {[%clk 0:00:20.6]} 41. Rxd6 {[%clk 0:01:02.1]}
41... Rxb3 {[%clk 0:00:20.6]} 42. Rc6 {[%clk 0:00:59.4]} 42... Rf3+ {[%clk
0:00:18.3]} 43. Ke2 {[%clk 0:00:55.9]} 43... Rxf4 {[%clk 0:00:18.3]} 44. Rxc5
{[%clk 0:00:56.3]} 44... b3 {[%clk 0:00:17.8]} 45. Kd3 {[%clk 0:00:54.9]} 45...
Rf2 {[%clk 0:00:15.9]} 46. Rb5 {[%clk 0:00:53.6]} 46... b2 {[%clk 0:00:14.2]}
47. h4 {[%clk 0:00:41.9]} 47... Ke7 {[%clk 0:00:12.9]} 48. Kc3 {[%clk
0:00:40.6]} 48... Rh2 {[%clk 0:00:10.3]} 49. Rxb2 {[%clk 0:00:39]} 49... Rxh4
{[%clk 0:00:10]} 50. a5 {[%clk 0:00:39.1]} 50... Rh1 {[%clk 0:00:06.2]} 51. Ra2
{[%clk 0:00:38.6]} 51... Rb1 {[%clk 0:00:04.7]} 52. a6 {[%clk 0:00:38.5]} 52...
Rb8 {[%clk 0:00:04.6]} 53. c5 {[%clk 0:00:35.1]} 53... Kd7 {[%clk 0:00:04.3]}
54. Kc4 {[%clk 0:00:35]} 54... Kc6 {[%clk 0:00:04.3]} 55. Rg2 {[%clk 0:00:34.4]}
55... h5 {[%clk 0:00:02.6]} 56. Rg6+ {[%clk 0:00:34.3]} 56... Kc7 {[%clk
0:00:02.5]} 57. Rh6 {[%clk 0:00:24.7]} 57... Ra8 {[%clk 0:00:02.6]} 58. Rh7+
{[%clk 0:00:22.4]} 58... Kc6 {[%clk 0:00:02.4]} 59. Rxh5 {[%clk 0:00:16.7]}
59... Rxa6 {[%clk 0:00:01.5]} 60. Rh6+ {[%clk 0:00:16.9]} 60... Kb7 {[%clk
0:00:02.4]} 61. Rxa6 {[%clk 0:00:17.4]} 61... Kxa6 {[%clk 0:00:03.3]} 62. Kd5
{[%clk 0:00:18.3]} 62... Kb7 {[%clk 0:00:04.2]} 63. Kd6 {[%clk 0:00:18.7]} 1-0

[Event "*** Titled Tuesday Blitz"]
[Site "Chess.com"]
[Date "2020.04.14"]
[Round "2"]
[White "UCantHandleDenker"]
[Black "lilleper1"]
[Result "1-0"]
[WhiteElo "2570"]
[BlackElo "2787"]
[TimeControl "180+1"]
[EndTime "10:18:29 PDT"]
[Termination "UCantHandleDenker won by resignation"]

1. Nf3 {[%clk 0:03:00.9]} 1... c5 {[%clk 0:02:59.3]} 2. g3 {[%clk 0:03:00.4]}
2... Nc6 {[%clk 0:02:58.2]} 3. Bg2 {[%clk 0:02:59.9]} 3... g6 {[%clk 0:02:58.3]}
4. O-O {[%clk 0:02:59.2]} 4... Bg7 {[%clk 0:02:58.8]} 5. d3 {[%clk 0:02:59.3]}
5... d5 {[%clk 0:02:57.6]} 6. Nbd2 {[%clk 0:02:59.3]} 6... Nf6 {[%clk
0:02:55.4]} 7. e4 {[%clk 0:02:59.2]} 7... O-O {[%clk 0:02:54.4]} 8. Re1 {[%clk
0:02:57.9]} 8... e5 {[%clk 0:02:52.9]} 9. exd5 {[%clk 0:02:57.5]} 9... Nxd5
{[%clk 0:02:52.2]} 10. a3 {[%clk 0:02:58.4]} 10... Re8 {[%clk 0:02:48.8]} 11.
Rb1 {[%clk 0:02:58.2]} 11... h6 {[%clk 0:02:47.6]} 12. Ne4 {[%clk 0:02:58.3]}
12... b6 {[%clk 0:02:47.4]} 13. c4 {[%clk 0:02:58.7]} 13... Nde7 {[%clk
0:02:40.9]} 14. b4 {[%clk 0:02:58.5]} 14... cxb4 {[%clk 0:02:35.2]} 15. axb4
{[%clk 0:02:59.4]} 15... Bb7 {[%clk 0:02:30.7]} 16. c5 {[%clk 0:02:47]} 16...
Nf5 {[%clk 0:01:49.2]} 17. b5 {[%clk 0:02:42.6]} 17... Ncd4 {[%clk 0:01:47.5]}
18. c6 {[%clk 0:02:26.7]} 18... Bc8 {[%clk 0:01:44]} 19. Nxd4 {[%clk 0:02:24.9]}
19... Nxd4 {[%clk 0:01:43.7]} 20. Ba3 {[%clk 0:02:21]} 20... Re6 {[%clk
0:01:25.3]} 21. Rc1 {[%clk 0:02:03.5]} 21... Nxb5 {[%clk 0:01:22.2]} 22. Bb2
{[%clk 0:01:54.6]} 22... Qc7 {[%clk 0:01:20.8]} 23. Qb3 {[%clk 0:01:46.3]} 23...
a6 {[%clk 0:01:16]} 24. Nd2 {[%clk 0:01:39.4]} 24... Re8 {[%clk 0:01:15]} 25.
Nc4 {[%clk 0:01:25.6]} 25... Be6 {[%clk 0:01:15.3]} 26. Qb4 {[%clk 0:01:25.7]}
26... Bf8 {[%clk 0:01:12.1]} 27. Qd2 {[%clk 0:01:16.9]} 27... f6 {[%clk
0:01:11.3]} 28. f4 {[%clk 0:01:10.2]} 28... Bc5+ {[%clk 0:01:03.2]} 29. Kh1
{[%clk 0:01:09.8]} 29... Bd4 {[%clk 0:00:48.3]} 30. fxe5 {[%clk 0:01:07.3]}
30... Bxb2 {[%clk 0:00:45]} 31. Nxb2 {[%clk 0:00:57.7]} 31... fxe5 {[%clk
0:00:45]} 32. Qxh6 {[%clk 0:00:57.4]} 32... Bf7 {[%clk 0:00:36.1]} 33. Nc4
{[%clk 0:00:57.2]} 33... Rad8 {[%clk 0:00:34.9]} 34. Qg5 {[%clk 0:00:55.9]}
34... Qe7 {[%clk 0:00:24.4]} 35. Qxe7 {[%clk 0:00:53.8]} 35... Rxe7 {[%clk
0:00:25.3]} 36. Nxe5 {[%clk 0:00:52.5]} 36... Rde8 {[%clk 0:00:24.6]} 37. Nf3
{[%clk 0:00:48.7]} 37... Bd5 {[%clk 0:00:23.3]} 38. Rxe7 {[%clk 0:00:47.5]}
38... Rxe7 {[%clk 0:00:24.2]} 39. Ng5 {[%clk 0:00:41.7]} 39... Bxg2+ {[%clk
0:00:23.6]} 40. Kxg2 {[%clk 0:00:42.6]} 40... Kg7 {[%clk 0:00:21.3]} 41. Ne4
{[%clk 0:00:42.2]} 41... Rc7 {[%clk 0:00:19.9]} 42. h4 {[%clk 0:00:41.1]} 42...
Nd4 {[%clk 0:00:19.8]} 43. Rc4 {[%clk 0:00:33.6]} 43... Nxc6 {[%clk 0:00:19.2]}
44. Ng5 {[%clk 0:00:33.1]} 44... Kf6 {[%clk 0:00:18.3]} 45. g4 {[%clk
0:00:31.5]} 45... Rc8 {[%clk 0:00:18]} 46. Rf4+ {[%clk 0:00:30.2]} 46... Ke5
{[%clk 0:00:17.5]} 47. Kg3 {[%clk 0:00:28.6]} 47... Nd4 {[%clk 0:00:17.1]} 48.
Nf7+ {[%clk 0:00:28.4]} 48... Kd5 {[%clk 0:00:16.6]} 49. Rf6 {[%clk 0:00:28.7]}
49... Rc3 {[%clk 0:00:15.8]} 50. Rd6+ {[%clk 0:00:28.8]} 50... Kc5 {[%clk
0:00:15.2]} 51. Rxg6 {[%clk 0:00:29.3]} 51... Rxd3+ {[%clk 0:00:15.3]} 52. Kf4
{[%clk 0:00:29.9]} 52... a5 {[%clk 0:00:15.3]} 53. h5 {[%clk 0:00:29.5]} 53...
a4 {[%clk 0:00:15.1]} 54. Ne5 {[%clk 0:00:30]} 54... Rd1 {[%clk 0:00:14.4]} 55.
Rg8 {[%clk 0:00:29.5]} 55... a3 {[%clk 0:00:13.6]} 56. Rc8+ {[%clk 0:00:28.9]}
56... Kd6 {[%clk 0:00:11.9]} 57. Rd8+ {[%clk 0:00:28.7]} 57... Ke7 {[%clk
0:00:11.8]} 58. Rd7+ {[%clk 0:00:28.8]} 58... Ke6 {[%clk 0:00:11.8]} 59. Ra7
{[%clk 0:00:28.8]} 59... Rf1+ {[%clk 0:00:10.7]} 60. Ke4 {[%clk 0:00:29.1]}
60... Nc2 {[%clk 0:00:09.8]} 61. Nd3 {[%clk 0:00:27]} 61... Rg1 {[%clk
0:00:09.1]} 62. Kf3 {[%clk 0:00:24.6]} 62... Ne1+ {[%clk 0:00:08]} 63. Nxe1
{[%clk 0:00:23.8]} 63... Rxe1 {[%clk 0:00:08.9]} 64. Rxa3 {[%clk 0:00:23.3]}
64... Rh1 {[%clk 0:00:09.4]} 65. Re3+ {[%clk 0:00:24.1]} 65... Kf6 {[%clk
0:00:08.4]} 66. Kf4 {[%clk 0:00:25]} 66... Rf1+ {[%clk 0:00:08.7]} 67. Rf3
{[%clk 0:00:24.7]} 67... b5 {[%clk 0:00:09.4]} 68. Rxf1 {[%clk 0:00:24.4]} 1-0

[Event "*** Titled Tuesday Blitz"]
[Site "Chess.com"]
[Date "2020.04.14"]
[Round "2"]
[White "mirochka"]
[Black "Keks2017"]
[Result "1-0"]
[WhiteElo "2357"]
[BlackElo "2473"]
[TimeControl "180+1"]
[EndTime "10:18:30 PDT"]
[Termination "mirochka won on time"]

1. e4 {[%clk 0:03:00.9]} 1... d6 {[%clk 0:02:59.3]} 2. d4 {[%clk 0:02:59.9]}
2... Nf6 {[%clk 0:02:58.7]} 3. Nc3 {[%clk 0:02:56.9]} 3... g6 {[%clk 0:02:58.2]}
4. Bg5 {[%clk 0:02:54.6]} 4... Bg7 {[%clk 0:02:57.8]} 5. Qd2 {[%clk 0:02:52.6]}
5... c6 {[%clk 0:02:56.9]} 6. f4 {[%clk 0:02:50.6]} 6... O-O {[%clk 0:02:51.1]}
7. Nf3 {[%clk 0:02:39.1]} 7... b5 {[%clk 0:02:50.8]} 8. Bd3 {[%clk 0:02:38.3]}
8... Bg4 {[%clk 0:02:49.7]} 9. O-O {[%clk 0:02:34.9]} 9... Nbd7 {[%clk
0:02:33.7]} 10. h3 {[%clk 0:02:29.6]} 10... Bxf3 {[%clk 0:02:32.6]} 11. Rxf3
{[%clk 0:02:30.1]} 11... Qb6 {[%clk 0:02:20]} 12. Ne2 {[%clk 0:02:24.6]} 12...
Rae8 {[%clk 0:02:17.3]} 13. f5 {[%clk 0:02:05.4]} 13... d5 {[%clk 0:02:16.5]}
14. exd5 {[%clk 0:01:53.5]} 14... Nxd5 {[%clk 0:02:08.9]} 15. c3 {[%clk
0:01:51.4]} 15... N7f6 {[%clk 0:02:08.4]} 16. Bh6 {[%clk 0:01:37.8]} 16... a6
{[%clk 0:02:08.3]} 17. Raf1 {[%clk 0:01:35.3]} 17... c5 {[%clk 0:02:05.4]} 18.
Kh1 {[%clk 0:01:31.3]} 18... Rd8 {[%clk 0:02:03]} 19. Bxg7 {[%clk 0:01:27.8]}
19... Kxg7 {[%clk 0:02:02.5]} 20. fxg6 {[%clk 0:01:25.7]} 20... hxg6 {[%clk
0:02:01.5]} 21. Qg5 {[%clk 0:01:24.4]} 21... Rh8 {[%clk 0:01:40.2]} 22. dxc5
{[%clk 0:01:22.4]} 22... Qxc5 {[%clk 0:01:35.1]} 23. Nd4 {[%clk 0:01:21.3]}
23... Qc8 {[%clk 0:01:25.7]} 24. Re1 {[%clk 0:01:08.5]} 24... Rh5 {[%clk
0:01:08.5]} 25. Qg3 {[%clk 0:01:01.7]} 25... Qg4 {[%clk 0:00:32.3]} 26. Qh2
{[%clk 0:00:37.3]} 26... Qh4 {[%clk 0:00:29.8]} 27. Ref1 {[%clk 0:00:31.7]}
27... Qg5 {[%clk 0:00:25.5]} 28. Rg3 {[%clk 0:00:29.1]} 28... Qd2 {[%clk
0:00:18.7]} 29. Bxg6 {[%clk 0:00:22.9]} 29... fxg6 {[%clk 0:00:15.1]} 30. Ne6+
{[%clk 0:00:22.7]} 30... Kh7 {[%clk 0:00:15.1]} 31. Nxd8 {[%clk 0:00:22.2]}
31... Ne3 {[%clk 0:00:15.2]} 32. Rg1 {[%clk 0:00:18.1]} 32... Nf5 {[%clk
0:00:14.7]} 33. Rf3 {[%clk 0:00:16.5]} 33... Qxd8 {[%clk 0:00:14.3]} 34. g4
{[%clk 0:00:14.9]} 34... Nh4 {[%clk 0:00:13.9]} 35. Rxf6 {[%clk 0:00:12.5]}
35... Qd5+ {[%clk 0:00:11.5]} 36. Rg2 {[%clk 0:00:11.1]} 36... Nxg2 {[%clk
0:00:11.6]} 37. Qxg2 {[%clk 0:00:09.3]} 37... Qxg2+ {[%clk 0:00:09.7]} 38. Kxg2
{[%clk 0:00:08.8]} 38... Re5 {[%clk 0:00:07.2]} 39. Rf2 {[%clk 0:00:06.8]} 39...
Kg7 {[%clk 0:00:06.6]} 40. Rd2 {[%clk 0:00:06.9]} 40... Re3 {[%clk 0:00:05.5]}
41. Rd7 {[%clk 0:00:02.7]} 41... Kf6 {[%clk 0:00:04.6]} 42. Ra7 {[%clk 0:00:03]}
42... Re2+ {[%clk 0:00:04.5]} 43. Kf3 {[%clk 0:00:03]} 43... Rxb2 {[%clk
0:00:04.4]} 44. Rxa6+ {[%clk 0:00:03.6]} 44... e6 {[%clk 0:00:04.7]} 45. Rb6
{[%clk 0:00:03.6]} 45... Rxa2 {[%clk 0:00:04.2]} 46. Rxb5 {[%clk 0:00:04.2]}
46... Ra3 {[%clk 0:00:04.4]} 47. Rc5 {[%clk 0:00:04.7]} 47... g5 {[%clk
0:00:04.5]} 48. Ke4 {[%clk 0:00:04.8]} 48... Ra1 {[%clk 0:00:04.2]} 49. Rc8
{[%clk 0:00:03.7]} 49... Rh1 {[%clk 0:00:03.1]} 50. Rf8+ {[%clk 0:00:02.6]}
50... Ke7 {[%clk 0:00:02.1]} 51. Rf3 {[%clk 0:00:02.5]} 51... Kd6 {[%clk
0:00:01.8]} 52. c4 {[%clk 0:00:02.3]} 52... Re1+ {[%clk 0:00:01.2]} 53. Re3
{[%clk 0:00:02]} 1-0